bitfinex/quotes_BTCUSD_20241010
["timestamp","ask_amount","ask_price","bid_price","bid_amount"]
[1728585593048,0.1693093,59284.0,59271.0,0.000814]
[1728585593049,0.168683,59283.0,59271.0,0.000814]
[1728585593238,0.1693093,59284.0,59272.0,0.25285089]
[1728585594052,0.1693093,59284.0,59272.0,0.42156189]
[1728585594247,0.1693093,59284.0,59272.0,0.25285089]
[1728585594633,0.25285089,59281.0,59271.0,0.169529]
[1728585594832,0.1693093,59284.0,59272.0,0.25285089]
[1728585595034,0.168683,59283.0,59272.0,0.25285089]
[1728585596069,0.1693093,59284.0,59272.0,0.25285089]
[1728585596266,0.1693093,59284.0,59276.0,0.03]
[1728585596519,0.3379883,59284.0,59276.0,0.03]
[1728585596696,0.1693093,59284.0,59276.0,0.03]
[1728585597793,0.191653,59293.0,59278.0,0.42154389]
[1728585597997,0.59015689,59294.0,59278.0,0.42154389]
[1728585597998,0.25285089,59288.0,59285.0,0.29550024]
[1728585598221,0.25285089,59294.0,59285.0,0.46417524]
[1728585598439,0.1693093,59293.0,59285.0,0.29550024]
[1728585599123,0.1693093,59293.0,59282.0,0.42153489]
[1728585599359,0.168664,59290.0,59280.0,0.25285089]
[1728585599590,0.168669,59288.0,59278.0,0.25285089]
[1728585599821,0.168677,59285.0,59278.0,0.25285089]
[1728585600263,0.168677,59285.0,59276.0,0.03]
[1728585600264,0.3379873,59285.0,59276.0,0.03]
[1728585600486,0.1693093,59285.0,59276.0,0.03]
[1728585601894,0.3379863,59285.0,59276.0,0.03]
[1728585602128,0.1012,59281.0,59276.0,0.03]
[1728585602327,0.1693093,59280.0,59276.0,0.03]
[1728585602537,0.3380013,59280.0,59276.0,0.03]
[1728585602743,0.168699,59277.0,59276.0,0.03]
[1728585602965,0.3610083,59277.0,59276.0,0.03]
[1728585604936,0.3610083,59277.0,59276.0,0.030814]
[1728585605430,0.54835113,59288.0,59276.0,0.030814]
[1728585605431,0.0761,59289.0,59276.0,0.030814]
[1728585605634,0.0761,59289.0,59281.0,0.29550024]
[1728585605635,0.25285089,59286.0,59281.0,0.29550024]
[1728585605841,0.25285089,59286.0,59277.0,0.29550024]
[1728585605842,0.16868,59284.0,59277.0,0.29550024]
[1728585606102,0.1690093,59285.0,59276.0,0.030814]
[1728585606103,0.1689093,59285.0,59276.0,0.030814]
[1728585606293,0.168599,59277.0,59276.0,0.030814]
[1728585606534,0.3378083,59277.0,59276.0,0.030814]
[1728585606775,0.3378083,59277.0,59276.0,0.000814]
[1728585606776,0.3371083,59277.0,59276.0,0.000814]
[1728585606997,0.3600083,59277.0,59276.0,0.000814]
[1728585607212,0.3599083,59277.0,59276.0,0.000814]
[1728585607426,0.3596083,59277.0,59276.0,0.000814]
[1728585607655,0.3592083,59277.0,59276.0,0.000814]
[1728585607878,0.3590083,59277.0,59276.0,0.000814]
[1728585608082,0.3589083,59277.0,59276.0,0.000814]
[1728585608308,0.1921093,59277.0,59276.0,0.000814]
[1728585608534,0.1687093,59277.0,59276.0,0.000814]
[1728585608759,0.1,59284.0,59276.0,0.000814]
[1728585608976,0.1692093,59283.0,59276.0,0.000814]
[1728585609215,0.1689093,59283.0,59276.0,0.000814]
[1728585609456,0.1689093,59283.0,59276.0,0.169514]
[1728585609457,0.1685093,59283.0,59276.0,0.169514]
[1728585609668,0.1684093,59283.0,59276.0,0.000814]
[1728585609884,0.1682093,59283.0,59276.0,0.000814]
[1728585610297,0.1681093,59283.0,59276.0,0.000814]
[1728585610743,0.0761,59289.0,59278.0,0.337392]
[1728585610977,0.25285089,59289.0,59287.0,0.29550024]
[1728585611393,0.001628,59291.0,59287.0,0.29550024]
[1728585612285,0.001628,59291.0,59285.0,0.168676]
[1728585612512,0.001628,59291.0,59284.0,0.168678]
[1728585612934,0.001628,59291.0,59283.0,0.337364]
[1728585612935,0.001628,59291.0,59285.0,0.168676]
[1728585613153,0.001628,59291.0,59283.0,0.337364]
[1728585613357,0.001628,59291.0,59286.0,0.29550024]
[1728585613594,0.001628,59291.0,59290.0,0.168662]
[1728585613813,0.001628,59291.0,59288.0,0.337335]
[1728585614024,0.001628,59291.0,59289.0,0.168665]
[1728585614240,0.001628,59291.0,59288.0,0.168668]
[1728585614532,0.001628,59291.0,59283.0,0.168681]
[1728585614742,0.001628,59291.0,59267.0,0.61227494]
[1728585614743,0.25285089,59289.0,59267.0,0.000814]
[1728585614985,0.192328,59291.0,59278.0,0.25285089]
[1728585614986,0.023,59284.0,59278.0,0.25285089]
[1728585615220,0.023,59284.0,59272.0,0.25285089]
[1728585615221,0.168699,59277.0,59272.0,0.25285089]
[1728585615455,0.2973093,59277.0,59267.0,0.000814]
[1728585615666,0.191719,59270.0,59267.0,0.000814]
[1728585616794,0.3610283,59270.0,59267.0,0.000814]
[1728585617497,0.38538883,59270.0,59267.0,0.000814]
[1728585619063,0.54674733,59270.0,59267.0,0.000814]
[1728585619270,0.91534733,59270.0,59267.0,0.000814]
[1728585619495,0.75398883,59270.0,59267.0,0.000814]
[1728585619948,0.74898883,59270.0,59267.0,0.000814]
[1728585623505,0.1,59270.0,59267.0,0.000814]
[1728585623711,0.168705,59275.0,59267.0,0.000814]
[1728585623921,0.1693093,59274.0,59267.0,0.000814]
[1728585624544,0.337422,59273.0,59267.0,0.000814]
[1728585624795,0.168719,59270.0,59267.0,0.000814]
[1728585625006,0.3380283,59270.0,59267.0,0.000814]
[1728585626265,0.19326444,59276.0,59267.0,0.000814]
[1728585626496,0.1693093,59276.0,59267.0,0.000814]
[1728585626714,0.16871,59274.0,59267.0,0.000814]
[1728585626944,0.25285089,59283.0,59267.0,0.000814]
[1728585626945,0.1,59288.0,59271.0,0.337432]
[1728585627156,0.1,59288.0,59267.0,0.000814]
[1728585627157,0.25285089,59282.0,59268.0,0.337445]
[1728585627372,0.1693093,59281.0,59270.0,0.337436]
[1728585627578,0.3379973,59281.0,59270.0,0.168717]
[1728585628047,0.10626406,59287.0,59270.0,0.168717]
[1728585628048,0.25285089,59288.0,59278.0,0.29550024]
[1728585628279,0.25285089,59288.0,59287.0,0.168671]
[1728585628512,0.25285089,59288.0,59284.0,0.337356]
[1728585628733,0.001628,59291.0,59283.0,0.29550024]
[1728585628945,0.001628,59291.0,59285.0,0.337353]
[1728585629200,0.001628,59291.0,59286.0,0.168671]
[1728585630073,0.001628,59291.0,59284.0,0.168678]
[1728585630282,0.001628,59291.0,59283.0,0.168682]
[1728585630415,0.001628,59291.0,59284.0,0.168678]
[1728585630619,0.001628,59291.0,59281.0,0.337375]
[1728585630840,0.001628,59291.0,59285.0,0.168674]
[1728585631482,0.001628,59291.0,59283.0,0.337362]
[1728585631483,0.001628,59291.0,59283.0,0.16868]
[1728585631733,0.001628,59291.0,59277.0,0.1]
[1728585631960,0.001628,59291.0,59275.0,0.1]
[1728585631961,0.168678,59285.0,59275.0,0.1]
[1728585632198,0.25285089,59289.0,59272.0,0.168711]
[1728585632199,0.168682,59284.0,59272.0,0.168711]
[1728585632428,0.16868,59284.0,59272.0,0.168711]
[1728585632658,0.1693093,59288.0,59269.0,0.26366489]
[1728585632659,0.168694,59279.0,59269.0,0.26366489]
[1728585632891,0.29550024,59282.0,59270.0,0.25285089]
[1728585633123,0.46480954,59282.0,59270.0,0.25285089]
[1728585633369,0.46480954,59282.0,59269.0,0.010814]
[1728585633370,0.168707,59275.0,59269.0,0.010814]
[1728585633570,0.1687,59277.0,59269.0,0.010814]
[1728585633812,0.1693093,59276.0,59269.0,0.010814]
[1728585634022,0.191719,59270.0,59269.0,0.010814]
[1728585634247,0.3610283,59270.0,59269.0,0.010814]
[1728585636938,0.3510283,59270.0,59269.0,0.010814]
[1728585637363,0.37526498,59270.0,59269.0,0.010814]
[1728585638307,0.37526498,59270.0,59269.0,0.009814]
[1728585639213,0.37526498,59270.0,59267.0,0.000814]
[1728585639214,0.274625,59268.0,59267.0,0.000814]
[1728585639427,0.4439343,59268.0,59267.0,0.000814]
[1728585639642,0.73943454,59268.0,59267.0,0.000814]
[1728585639855,0.4439343,59268.0,59267.0,0.000814]
[1728585641006,0.73943454,59268.0,59267.0,0.000814]
[1728585642336,0.1693093,59268.0,59267.0,0.000814]
[1728585642542,0.02423668,59270.0,59267.0,0.000814]
[1728585642778,0.1693093,59270.0,59260.0,0.337493]
[1728585643005,0.1693093,59270.0,59262.0,0.168741]
[1728585643232,0.1693093,59270.0,59261.0,0.168744]
[1728585643892,0.1693093,59270.0,59260.0,0.168746]
[1728585644588,0.59087919,59270.0,59260.0,0.168746]
[1728585644832,0.59087919,59270.0,59257.0,0.337512]
[1728585644833,0.1693093,59270.0,59264.0,0.168735]
[1728585645074,0.1693093,59270.0,59261.0,0.337487]
[1728585645594,0.1693093,59270.0,59261.0,0.168742]
[1728585645836,0.1693093,59270.0,59260.0,0.337495]
[1728585646050,0.1693093,59270.0,59260.0,0.168746]
[1728585646284,0.42216019,59270.0,59260.0,0.168747]
[1728585646740,0.59088019,59270.0,59260.0,0.168747]
[1728585647815,0.42216019,59270.0,59255.0,0.25285089]
[1728585648030,0.42216019,59270.0,59258.0,0.337504]
[1728585648264,0.168723,59269.0,59259.0,0.168749]
[1728585648488,0.168723,59269.0,59258.0,0.337503]
[1728585648489,0.168728,59267.0,59257.0,0.168755]
[1728585649189,0.1693093,59268.0,59255.0,0.33752]
[1728585649190,0.1693093,59268.0,59259.0,0.168749]
[1728585649430,0.1693093,59268.0,59256.0,0.337514]
[1728585649431,0.1693093,59268.0,59262.0,0.168739]
[1728585649669,0.1693093,59268.0,59260.0,0.168746]
[1728585649909,0.1693093,59268.0,59258.0,0.506254]
[1728585650134,0.1693093,59268.0,59259.0,0.168749]
[1728585650601,0.1693093,59268.0,59256.0,0.337515]
[1728585650836,0.1693093,59268.0,59254.0,0.000814]
[1728585650837,0.337492,59261.0,59254.0,0.000814]
[1728585651062,0.168752,59259.0,59254.0,0.000814]
[1728585651299,0.168751,59259.0,59254.0,0.000814]
[1728585651524,0.337495,59261.0,59254.0,0.000814]
[1728585651525,0.168762,59255.0,59254.0,0.000814]
[1728585651766,0.3610713,59255.0,59254.0,0.000814]
[1728585654022,0.0793,59261.0,59254.0,0.000814]
[1728585654237,0.1938,59264.0,59259.0,0.000814]
[1728585654238,0.1693093,59260.0,59259.0,0.000814]
[1728585654885,0.337459,59267.0,59259.0,0.000814]
[1728585654886,0.168728,59267.0,59259.0,0.000814]
[1728585655097,0.25285089,59264.0,59259.0,0.000814]
[1728585655359,0.3380403,59266.0,59259.0,0.000814]
[1728585655360,0.1693093,59263.0,59259.0,0.000814]
[1728585655594,0.079,59268.0,59261.0,0.168744]
[1728585655814,0.42319789,59270.0,59259.0,0.169564]
[1728585655815,0.1693093,59267.0,59259.0,0.169564]
[1728585656025,0.1693093,59267.0,59259.0,0.000814]
[1728585656239,0.1693093,59267.0,59260.0,0.168747]
[1728585656465,0.1693093,59267.0,59261.0,0.168742]
[1728585656677,0.1693093,59267.0,59260.0,0.168747]
[1728585656921,0.1693093,59267.0,59259.0,0.169564]
[1728585657132,0.1693093,59267.0,59263.0,0.168738]
[1728585657345,0.1693093,59267.0,59261.0,0.337488]
[1728585657557,0.1693093,59267.0,59259.0,0.169562]
[1728585657780,0.168735,59265.0,59259.0,0.000814]
[1728585658004,0.29550024,59260.0,59259.0,0.000814]
[1728585658239,0.63355654,59260.0,59259.0,0.000814]
[1728585658472,0.65655654,59260.0,59259.0,0.000814]
[1728585658691,0.78970919,59260.0,59259.0,0.000814]
[1728585658918,0.73505654,59260.0,59259.0,0.000814]
[1728585661686,0.88467917,59260.0,59259.0,0.000814]
[1728585661907,0.93438064,59260.0,59259.0,0.000814]
[1728585662138,0.83505654,59260.0,59259.0,0.000814]
[1728585664552,0.5395563,59260.0,59259.0,0.000814]
[1728585664991,0.3380563,59260.0,59259.0,0.000814]
[1728585665419,0.1693093,59260.0,59259.0,0.000814]
[1728585666342,0.001628,59262.0,59259.0,0.000814]
[1728585666781,0.001628,59262.0,59259.0,0.169564]
[1728585667000,0.001628,59262.0,59259.0,0.000814]
[1728585669584,0.001628,59262.0,59261.0,0.168745]
[1728585670664,0.001628,59262.0,59259.0,0.169562]
[1728585670894,0.001628,59262.0,59259.0,0.00418863]
[1728585671142,0.25285089,59261.0,59259.0,0.000814]
[1728585671379,0.001628,59262.0,59259.0,0.000814]
[1728585671380,0.73155654,59260.0,59259.0,0.000814]
[1728585674374,0.98440743,59260.0,59259.0,0.000814]
[1728585674610,0.8834756,59260.0,59259.0,0.000814]
[1728585676096,0.93321392,59260.0,59259.0,0.000814]
[1728585676519,0.8834756,59260.0,59259.0,0.000814]
[1728585678467,0.98295225,59260.0,59259.0,0.000814]
[1728585678706,1.01394931,59260.0,59259.0,0.000814]
[1728585679671,0.91447266,59260.0,59259.0,0.000814]
[1728585679904,0.8834756,59260.0,59259.0,0.000814]
[1728585680133,0.98314636,59260.0,59259.0,0.000814]
[1728585681303,0.9312273,59260.0,59259.0,0.000814]
[1728585681507,0.98308439,59260.0,59259.0,0.000814]
[1728585682564,0.10161275,59260.0,59259.0,0.000814]
[1728585682789,0.001628,59262.0,59259.0,0.000814]
[1728585683305,0.339113,59262.0,59259.0,0.000814]
[1728585683554,0.001628,59262.0,59259.0,0.000814]
[1728585684049,0.170371,59262.0,59259.0,0.000814]
[1728585684280,0.168745,59261.0,59259.0,0.000814]
[1728585684519,0.001628,59262.0,59259.0,0.000814]
[1728585684755,0.001628,59262.0,59261.0,0.168745]
[1728585685243,0.001628,59262.0,59261.0,0.24951191]
[1728585686613,0.001628,59262.0,59261.0,0.246145]
[1728585687080,0.001628,59262.0,59261.0,0.168745]
[1728585687311,0.001628,59262.0,59260.0,0.337495]
[1728585687312,0.001628,59262.0,59260.0,0.168746]
[1728585687739,0.001628,59262.0,59259.0,0.000814]
[1728585689351,0.001628,59262.0,59259.0,0.169563]
[1728585690011,0.001628,59262.0,59260.0,0.337494]
[1728585690233,0.001628,59262.0,59260.0,0.168747]
[1728585690451,0.001628,59262.0,59259.0,0.000814]
[1728585690662,0.001628,59262.0,59260.0,0.168747]
[1728585691090,0.001628,59262.0,59259.0,0.000814]
[1728585691285,0.001628,59262.0,59259.0,0.169563]
[1728585692426,0.001628,59262.0,59261.0,0.168745]
[1728585694073,0.001628,59262.0,59261.0,0.64871993]
[1728585694314,0.001628,59262.0,59261.0,0.81965454]
[1728585695212,0.001628,59262.0,59261.0,0.64534524]
[1728585695683,0.001628,59262.0,59259.0,0.338311]
[1728585695901,0.001628,59262.0,59261.0,0.168745]
[1728585699542,0.2512376,59269.0,59262.0,0.337479]
[1728585699769,0.4205469,59269.0,59263.0,0.168738]
[1728585700205,0.4205469,59269.0,59260.0,0.337491]
[1728585700449,0.4205469,59269.0,59262.0,0.168741]
[1728585700913,0.5892699,59269.0,59262.0,0.168741]
[1728585701143,0.5892699,59269.0,59259.0,0.000814]
[1728585701144,0.1693093,59268.0,59259.0,0.000814]
[1728585701372,0.191747,59260.0,59259.0,0.000814]
[1728585701628,0.3610563,59260.0,59259.0,0.000814]
[1728585704933,0.74495467,59260.0,59259.0,0.000814]
[1728585705194,0.91439737,59260.0,59259.0,0.000814]
[1728585705445,0.96418722,59260.0,59259.0,0.000814]
[1728585705690,0.98908214,59260.0,59259.0,0.000814]
[1728585705910,1.04088554,59260.0,59259.0,0.000814]
[1728585706126,1.04079889,59260.0,59259.0,0.000814]
[1728585706636,0.87135619,59260.0,59259.0,0.000814]
[1728585709604,1.12420708,59260.0,59259.0,0.000814]
[1728585709855,0.87135619,59260.0,59259.0,0.000814]
[1728585710063,0.87143194,59260.0,59259.0,0.000814]
[1728585710288,0.79675807,59260.0,59259.0,0.000814]
[1728585710501,0.1693093,59260.0,59259.0,0.000814]
[1728585711195,0.25285089,59267.0,59259.0,0.000814]
[1728585711407,0.168734,59265.0,59259.0,0.169563]
[1728585711643,0.1693093,59264.0,59259.0,0.169563]
[1728585711892,0.1693093,59264.0,59259.0,0.000814]
[1728585712388,0.001628,59269.0,59263.0,0.168738]
[1728585712601,0.001628,59269.0,59264.0,0.337468]
[1728585712602,0.25285089,59268.0,59264.0,0.337468]
[1728585713063,0.25285089,59268.0,59259.0,0.000814]
[1728585713279,0.1709373,59269.0,59263.0,0.168738]
[1728585713520,0.1709373,59269.0,59259.0,0.000814]
[1728585713521,0.25285089,59267.0,59259.0,0.000814]
[1728585713732,0.339075,59269.0,59259.0,0.000814]
[1728585713733,0.168743,59262.0,59259.0,0.000814]
[1728585713985,0.16874,59263.0,59259.0,0.000814]
[1728585714468,0.337473,59264.0,59259.0,0.000814]
[1728585714469,0.1693093,59262.0,59259.0,0.000814]
[1728585714709,0.61330289,59268.0,59259.0,0.000814]
[1728585714937,0.25285089,59262.0,59259.0,0.000814]
[1728585715187,0.168747,59260.0,59259.0,0.000814]
[1728585715424,0.3610563,59260.0,59259.0,0.000814]
[1728585719204,0.38624245,59260.0,59259.0,0.000814]
[1728585723100,0.1693093,59260.0,59259.0,0.000814]
[1728585723318,0.04975773,59264.0,59259.0,0.000814]
[1728585723319,0.168738,59264.0,59259.0,0.000814]
[1728585723539,0.1693093,59263.0,59259.0,0.000814]
[1728585723779,0.168747,59260.0,59259.0,0.000814]
[1728585724495,0.3380563,59260.0,59259.0,0.000814]
[1728585724731,0.33597592,59260.0,59259.0,0.000814]
[1728585724966,0.35897592,59260.0,59259.0,0.000814]
[1728585726842,0.04975773,59264.0,59259.0,0.000814]
[1728585727148,0.04975773,59274.0,59268.0,0.168725]
[1728585727381,0.25285089,59275.0,59268.0,0.168725]
[1728585729760,0.25285089,59275.0,59268.0,0.17209907]
[1728585729984,0.25285089,59275.0,59268.0,0.168725]
[1728585730217,0.168709,59274.0,59268.0,0.168725]
[1728585730437,0.168709,59274.0,59259.0,0.000814]
[1728585730438,0.337456,59267.0,59259.0,0.000814]
[1728585730658,0.29550024,59274.0,59259.0,0.000814]
[1728585730904,0.168733,59266.0,59260.0,0.168746]
[1728585731136,0.168733,59266.0,59259.0,0.000814]
[1728585731355,0.168738,59264.0,59259.0,0.000814]
[1728585731580,0.337464,59266.0,59259.0,0.000814]
[1728585732041,0.168737,59264.0,59259.0,0.169564]
[1728585732520,0.168734,59265.0,59259.0,0.000814]
[1728585732745,0.168734,59265.0,59259.0,0.169563]
[1728585733198,0.25285089,59267.0,59259.0,0.169563]
[1728585733199,0.44459789,59260.0,59259.0,0.000814]
[1728585733436,0.73355654,59260.0,59259.0,0.000814]
[1728585734326,0.78321166,59260.0,59259.0,0.000814]
[1728585734538,0.83492986,59260.0,59259.0,0.000814]
[1728585734769,0.4380563,59260.0,59259.0,0.000814]
[1728585735015,0.46307846,59260.0,59259.0,0.000814]
[1728585737009,0.5898317,59260.0,59258.0,0.0196875]
[1728585737239,0.191762,59255.0,59254.0,0.000814]
[1728585737473,0.65657154,59255.0,59254.0,0.000814]
[1728585739553,0.75794409,59255.0,59254.0,0.000814]
[1728585739810,0.708311,59255.0,59254.0,0.000814]
[1728585740237,0.91090476,59255.0,59254.0,0.000814]
[1728585740476,0.88279036,59255.0,59254.0,0.000814]
[1728585740691,0.808311,59255.0,59254.0,0.000814]
[1728585742026,0.16881,59238.0,59237.0,0.25285089]
[1728585742272,0.16881,59238.0,59231.0,0.000814]
[1728585742273,0.191827,59232.0,59231.0,0.000814]
[1728585742511,0.191827,59232.0,59225.0,0.000814]
[1728585742512,0.168844,59226.0,59225.0,0.000814]
[1728585742732,0.48734424,59226.0,59225.0,0.000814]
[1728585743206,0.84483341,59226.0,59225.0,0.000814]
[1728585743449,0.79519712,59226.0,59225.0,0.000814]
[1728585743689,0.65665354,59226.0,59225.0,0.000814]
[1728585744913,0.68158808,59226.0,59225.0,0.000814]
[1728585745866,0.38608784,59226.0,59225.0,0.000814]
[1728585747501,0.38603784,59226.0,59225.0,0.000814]
[1728585749815,0.29550024,59231.0,59225.0,0.000814]
[1728585749816,0.0787,59236.0,59225.0,0.000814]
[1728585750062,0.25285089,59234.0,59225.0,0.000814]
[1728585750298,0.25285089,59240.0,59225.0,0.000814]
[1728585750299,0.168816,59236.0,59232.0,0.168826]
[1728585750525,0.25285089,59234.0,59231.0,0.168827]
[1728585750736,0.25285089,59234.0,59229.0,0.168835]
[1728585750974,0.1693093,59235.0,59232.0,0.168826]
[1728585751215,0.1693093,59235.0,59227.0,0.168839]
[1728585751216,0.168828,59232.0,59227.0,0.168839]
[1728585751466,0.168828,59232.0,59228.0,0.168838]
[1728585751693,0.168825,59233.0,59228.0,0.168838]
[1728585752120,0.16883,59231.0,59225.0,0.000814]
[1728585752342,0.337651,59233.0,59227.0,0.168841]
[1728585752343,0.168827,59232.0,59227.0,0.168841]
[1728585752603,0.168827,59232.0,59228.0,0.168838]
[1728585753057,0.168825,59233.0,59228.0,0.168838]
[1728585753483,0.1693093,59235.0,59225.0,0.000814]
[1728585753710,0.337619,59239.0,59225.0,0.000814]
[1728585753711,0.337591,59244.0,59226.0,0.25285089]
[1728585753952,0.25285089,59247.0,59233.0,0.0758]
[1728585753953,0.25285089,59241.0,59233.0,0.0758]
[1728585754182,0.25285089,59241.0,59240.0,0.168804]
[1728585754400,0.25285089,59241.0,59239.0,0.337613]
[1728585754401,0.25285089,59247.0,59246.0,0.168787]
[1728585755059,0.168765,59254.0,59248.0,0.506341]
[1728585755306,0.168765,59254.0,59249.0,0.168776]
[1728585755550,0.168765,59254.0,59248.0,0.16878]
[1728585755551,0.16877,59252.0,59248.0,0.16878]
[1728585755771,0.168786,59247.0,59243.0,0.168795]
[1728585756009,0.168786,59247.0,59231.0,0.57835113]
[1728585756010,0.023,59251.0,59237.0,0.337626]
[1728585756229,0.168787,59247.0,59238.0,0.337618]
[1728585756459,0.168796,59243.0,59239.0,0.168805]
[1728585756690,0.1693093,59247.0,59240.0,0.168804]
[1728585756691,0.337582,59245.0,59240.0,0.168804]
[1728585756919,0.168794,59244.0,59240.0,0.168804]
[1728585757369,0.1693093,59247.0,59238.0,0.337619]
[1728585757607,0.1693093,59247.0,59241.0,0.168801]
[1728585757608,0.005,59243.0,59241.0,0.168801]
[1728585757819,0.005,59243.0,59239.0,0.168804]
[1728585758027,0.005,59243.0,59240.0,0.168804]
[1728585758254,0.005,59243.0,59241.0,0.168801]
[1728585758487,0.005,59243.0,59238.0,0.337621]
[1728585758724,0.59037589,59255.0,59242.0,0.168799]
[1728585758935,0.25285089,59249.0,59248.0,0.168782]
[1728585759161,0.168767,59254.0,59250.0,0.168775]
[1728585759384,0.42161289,59255.0,59251.0,0.168772]
[1728585759740,0.337501,59259.0,59241.0,0.005]
[1728585759970,0.337501,59259.0,59254.0,0.168764]
[1728585759971,0.168754,59258.0,59254.0,0.168764]
[1728585760243,0.25285089,59255.0,59250.0,0.337548]
[1728585760444,0.1693093,59254.0,59240.0,0.337606]
[1728585760662,0.337555,59250.0,59237.0,0.25285089]
[1728585760875,0.2774105,59261.0,59237.0,0.25285089]
[1728585760876,0.168797,59243.0,59237.0,0.168811]
[1728585761111,0.168799,59242.0,59238.0,0.168809]
[1728585761353,0.168791,59245.0,59232.0,0.005]
[1728585761568,0.25285089,59247.0,59243.0,0.168794]
[1728585761802,0.168788,59246.0,59243.0,0.168794]
[1728585762024,0.337575,59246.0,59237.0,0.337623]
[1728585762266,0.337601,59242.0,59237.0,0.168811]
[1728585762488,0.168802,59241.0,59237.0,0.168811]
[1728585762702,0.1693093,59245.0,59231.0,0.03]
[1728585762940,0.168794,59244.0,59239.0,0.168805]
[1728585763149,0.007,59243.0,59240.0,0.168804]
[1728585763585,0.168794,59244.0,59240.0,0.168804]
[1728585763805,0.1693093,59245.0,59238.0,0.337617]
[1728585763806,0.5068913,59245.0,59238.0,0.337617]
[1728585764028,0.33752,59256.0,59237.0,0.001]
[1728585764238,0.0826,59257.0,59244.0,0.337581]
[1728585764239,0.16878,59249.0,59244.0,0.337581]
[1728585764456,0.16878,59249.0,59246.0,0.168787]
[1728585764457,0.25285089,59247.0,59246.0,0.168787]
[1728585764667,0.1693093,59249.0,59242.0,0.337597]
[1728585764883,0.006,59244.0,59243.0,0.168796]
[1728585765636,0.006,59244.0,59243.0,0.247896]
[1728585766119,0.25285089,59252.0,59251.0,0.168773]
[1728585766389,0.339127,59260.0,59258.0,0.337506]
[1728585766390,0.001628,59260.0,59258.0,0.337506]
[1728585766608,0.001628,59260.0,59259.0,0.16875]
[1728585767528,0.001628,59260.0,59254.0,0.337525]
[1728585768015,0.006628,59260.0,59254.0,0.337525]
[1728585768236,0.006628,59260.0,59257.0,0.168754]
[1728585768452,0.25285089,59259.0,59253.0,0.168767]
[1728585768664,0.337507,59258.0,59253.0,0.168767]
[1728585768875,0.168757,59257.0,59253.0,0.168767]
[1728585769722,0.1693093,59256.0,59247.0,0.337569]
[1728585769943,0.1693093,59256.0,59248.0,0.168781]
[1728585770171,0.33753,59254.0,59248.0,0.168781]
[1728585770382,0.506294,59254.0,59253.0,0.001]
[1728585770600,0.168764,59254.0,59253.0,0.001]
[1728585770830,0.168764,59254.0,59248.0,0.168781]
[1728585770831,0.168774,59251.0,59248.0,0.168781]
[1728585771291,0.168763,59255.0,59251.0,0.168772]
[1728585771539,0.168763,59255.0,59249.0,0.168778]
[1728585771540,0.337531,59254.0,59249.0,0.168778]
[1728585771769,0.16877,59252.0,59248.0,0.168781]
[1728585771983,0.16877,59252.0,59249.0,0.168778]
[1728585772206,0.337535,59253.0,59248.0,0.168781]
[1728585772422,0.25285089,59254.0,59250.0,0.168775]
[1728585772639,0.168764,59254.0,59253.0,0.004]
[1728585773062,0.168768,59253.0,59248.0,0.33756]
[1728585773288,0.175768,59253.0,59248.0,0.33856]
[1728585773512,0.007,59253.0,59251.0,0.168772]
[1728585773723,0.00163,59257.0,59250.0,0.337547]
[1728585773941,0.00163,59257.0,59256.0,0.168759]
[1728585774814,0.00163,59257.0,59253.0,0.004]
[1728585774815,0.46643954,59257.0,59253.0,0.004]
[1728585775071,0.168764,59254.0,59253.0,0.004]
[1728585775301,0.3380733,59254.0,59253.0,0.004]
[1728585775772,0.168796,59243.0,59239.0,0.25285089]
[1728585776184,0.337573,59247.0,59234.0,0.337638]
[1728585776401,0.168795,59244.0,59239.0,0.168807]
[1728585776625,0.1693093,59246.0,59232.0,0.25285089]
[1728585776851,0.3380973,59246.0,59241.0,0.1688]
[1728585777060,0.004,59243.0,59241.0,0.1688]
[1728585777266,0.004,59243.0,59240.0,0.168802]
[1728585777475,0.5068863,59246.0,59239.0,0.337613]
[1728585777686,0.1703093,59246.0,59241.0,0.337602]
[1728585777903,0.1703093,59246.0,59240.0,0.168802]
[1728585777904,0.3390993,59246.0,59240.0,0.168802]
[1728585778141,0.1703093,59246.0,59228.0,0.337672]
[1728585778356,0.1703093,59246.0,59240.0,0.168803]
[1728585778357,0.168791,59245.0,59240.0,0.168803]
[1728585778565,0.3380993,59245.0,59240.0,0.168802]
[1728585778768,0.1693093,59245.0,59240.0,0.168802]
[1728585779218,0.168796,59244.0,59239.0,0.168805]
[1728585779436,0.1693093,59245.0,59240.0,0.168804]
[1728585779662,0.001,59243.0,59240.0,0.168804]
[1728585780092,0.168793,59244.0,59238.0,0.337619]
[1728585780302,0.168793,59244.0,59239.0,0.168805]
[1728585780540,0.168793,59244.0,59238.0,0.337619]
[1728585780541,0.1763093,59245.0,59240.0,0.001]
[1728585780961,0.3451003,59245.0,59240.0,0.169804]
[1728585781655,0.1763093,59245.0,59240.0,0.001]
[1728585781915,0.3381003,59245.0,59239.0,0.337611]
[1728585782130,0.3381003,59245.0,59240.0,0.168803]
[1728585782353,0.003,59244.0,59240.0,0.168803]
[1728585782817,0.1693093,59245.0,59239.0,0.337611]
[1728585783040,0.3431013,59245.0,59240.0,0.168803]
[1728585783931,0.3381013,59245.0,59240.0,0.168803]
[1728585784125,0.3381013,59245.0,59239.0,0.337611]
[1728585784126,0.168794,59244.0,59239.0,0.168807]
[1728585784337,0.168796,59243.0,59239.0,0.168807]
[1728585784543,0.1688,59242.0,59240.0,0.000814]
[1728585785199,0.168797,59243.0,59240.0,0.000814]
[1728585786086,0.002,59242.0,59240.0,0.000814]
[1728585786524,0.1693093,59245.0,59240.0,0.000814]
[1728585786744,0.168796,59243.0,59240.0,0.000814]
[1728585786993,0.171796,59243.0,59240.0,0.000814]
[1728585787438,0.003,59243.0,59240.0,0.000814]
[1728585787681,0.274602,59241.0,59240.0,0.000814]